[Event "LV Capablanca Memorial Premier 2022"]
[Site "La Habana"]
[Date "2022.04.23"]
[Round "5.1"]
[White "Cori Tello, Deysi"]
[Black "Hernandez Moya, Yuleisy"]
[Result "1-0"]
[ECO "B14"]
[WhiteElo "2391"]
[BlackElo "2250"]
[Annotator "TA"]
[PlyCount "63"]
[EventDate "2022.04.20"]
[EventType "tourn"]
[EventCountry "CUB"]
[SourceTitle "playchess.com"]
[Source "ChessBase"]
[SourceQuality "1"]
[TimeControl "40/5400+30:1800+30"]

{[%evp 16,63,17,15,44,41,43,51,81,85,102,101,104,115,108,100,102,109,108,111,120,112,130,127,140,116,166,171,147,113,231,175,170,160,170,161,207,198,247,252,447,412,412,412,847,817,791,748,5775,4914]} 1. c4 {[%emt 0:02:05]} c5 {[%emt 0:00:30]} 2. Nf3 {[%emt 0:00:25]} g6 {[%emt 0:00:24]} 3. e3 {[%emt 0:07:29]} Bg7 {[%emt 0:00:17]} 4. Nc3 {[%emt 0:01:16]} Nf6 {[%emt 0:00:40]} 5. d4 {[%emt 0:00:32]} cxd4 {[%emt 0:02:04]} 6. exd4 {[%emt 0:00:15]} d5 {[%emt 0:00:06]} 7. Bg5 {[%emt 0:05:11]} dxc4 {[%emt 0:01:08]} 8. Bxc4 {[%emt 0:00:13]} O-O {[%emt 0:00:56]} 9. O-O {[%emt 0:10:06]} Nc6 {[%emt 0:06:50] B14: Caro-Kann: Panov-Botvinnik Attack with 5...e6 and 5...g6.} (9... Bg4 {is more complex.} 10. h3 Bxf3 11. Qxf3 Qxd4 12. Qxb7 Nbd7) 10. d5 {[%emt 0:02:45]} Na5 {[%emt 0:04:48]} 11. Be2 {[%emt 0:00:09] [#] b4 is the strong threat.} b6 {[%emt 0:01:59] White is slightly better.} 12. Rc1 {[%emt 0:02:03] [#]} Bg4 $146 {[%emt 0:06:46]} ({Predecessor:} 12... Nb7 13. a3 Nd6 14. Re1 a6 15. Bxf6 Bxf6 16. h3 b5 17. b4 Bf5 18. Bd3 Rc8 19. Bxf5 Nxf5 {½-½ (79) Chomienne,P (1209)-Basic,B (1977) Europe Echecs INT 2021}) 13. b4 {[%emt 0:17:03]} Nb7 {[%emt 0:01:37]} 14. Ne5 {[%emt 0:02:15]} Bxe2 {[%emt 0:08:16]} 15. Qxe2 {[%emt 0:00:06]} h6 {[%emt 0:15:06]} 16. Bh4 {[%emt 0:04:45] &Bianco is much more active.} Nd6 {[%emt 0:17:00]} 17. Nc6 {[%emt 0:04:28][%csl LRd8,LRe7]} Qd7 {[%emt 0:00:13]} 18. Qxe7 {[%emt 0:00:08]} Qxe7 {[%emt 0:01:30]} 19. Nxe7+ {[%emt 0:00:02]} Kh7 {[%emt 0:00:07]} 20. Bg3 {[%emt 0:01:09]} Nfe4 {[%emt 0:01:45]} (20... Rad8 $16) 21. Nxe4 $18 {[%emt 0:02:12]} Nxe4 {[%emt 0:00:01]} 22. Rc7 {[%emt 0:00:50]} Rfd8 {[%emt 0:05:14]} (22... a5 $16 {was worth a try.}) 23. Re1 {[%emt 0:02:40][%cal Bf1e1,Be1e3,Be3f3][%mdl 32]} Nxg3 {[%emt 0:02:23]} 24. hxg3 {[%emt 0:00:08]} Bf8 {[%emt 0:01:39]} 25. Re3 {[%emt 0:09:04]} Kg7 {[%emt 0:04:15] [#]} (25... Kh8 {was necessary.} 26. Rd3 Bxe7) 26. Rf3 $1 {[%emt 0:04:15]} Rd6 {[%emt 0:00:52]} (26... Bxe7 $142 27. Rxe7 Rf8) 27. Nc8 {[%emt 0:01:49]} Rf6 {[%emt 0:00:58]} (27... Rd8) 28. Rxf6 {[%emt 0:00:00]} Kxf6 {[%emt 0:00:03]} 29. d6 {[%emt 0:02:21][%cal Bd5d6,Bd6d7][%mdl 32] aiming for d7.} Ke6 {[%emt 0:06:26]} (29... Rxc8 $142 30. Rxc8 Bxd6) 30. d7 {[%emt 0:00:00] White is clearly winning.} Be7 {[%emt 0:00:09]} 31. Nxe7 {[%emt 0:00:00] Nc8 would kill now.} Kxe7 {[%emt 0:00:04]} 32. Rc8 {[%emt 0:00:00] Weighted Error Value: White=0.06 (flawless) /Black=0.35} 1-0

[Event "LV Capablanca Memorial Premier 2022"]
[Site "La Habana"]
[Date "2022.04.23"]
[Round "5.2"]
[White "Miranda Llanes, Yerisbel"]
[Black "Bulmaga, Irina"]
[Result "1/2-1/2"]
[ECO "C02"]
[WhiteElo "2261"]
[BlackElo "2390"]
[Annotator "TA"]
[PlyCount "65"]
[EventDate "2022.04.20"]
[EventType "tourn"]
[EventCountry "CUB"]
[SourceTitle "playchess.com"]
[Source "ChessBase"]
[SourceQuality "1"]
[TimeControl "40/5400+30:1800+30"]

{[%evp 12,65,41,-30,-13,-21,0,0,2,0,0,0,0,-14,34,49,42,-40,20,35,25,0,14,0,47,7,84,75,52,62,94,73,80,63,77,-40,0,-39,-38,-40,-45,-46,0,0,2,0,0,8,0,7,135,166,137,155,182,51]} 1. e4 {[%emt 0:00:05]} e6 {[%emt 0:00:06]} 2. d4 {[%emt 0:00:10]} d5 {[%emt 0:00:13]} 3. e5 {[%emt 0:00:10]} c5 {[%emt 0:00:14]} 4. c3 {[%emt 0:00:10]} Nc6 {[%emt 0:00:38]} 5. Nf3 {[%emt 0:00:10]} Bd7 {[%emt 0:00:39]} 6. Bd3 {[%emt 0:09:46]} Qb6 {[%emt 0:02:55]} 7. O-O {[%emt 0:00:44]} (7. dxc5 $14 Bxc5 8. O-O) 7... cxd4 $11 {[%emt 0:02:38] C02: French: Advance Variation.} 8. Re1 {[%emt 0:00:13]} h6 {[%emt 0:07:28]} 9. a3 {[%emt 0:02:10]} Rc8 {[%emt 0:06:03] [#] The position is equal.} 10. b4 $146 {[%emt 0:17:04]} ({Predecessor:} 10. Bc2 Bc5 11. b4 d3 12. bxc5 dxc2 13. Qxc2 Qxc5 14. Be3 Qa5 15. Nbd2 Qc7 16. Bc5 Nxe5 {0-1 (29) Langnau,R-Elwert,H corr 1985}) 10... dxc3 {[%emt 0:03:33]} 11. Nxc3 {[%emt 0:01:16][%cal Bb1c3,Bc3e2,Be2d4][%mdl 32]} Nd4 $1 {[%emt 0:06:55]} 12. Bd2 {[%emt 0:02:44]} (12. Be3 Nxf3+ 13. gxf3 (13. Qxf3 $2 d4 $17) 13... Qd8 $15) 12... Nxf3+ {[%emt 0:02:02]} (12... a6 $11 {is more appropriate.}) 13. Qxf3 $14 {[%emt 0:01:15]} Ne7 {[%emt 0:00:27]} 14. b5 {[%emt 0:06:50]} ({White should play} 14. Rac1 $14) 14... Qd8 {[%emt 0:07:12]} (14... g6 $15) 15. Ne2 $11 {[%emt 0:05:29][%mdl 1024] White has compensation.} g6 {[%emt 0:05:35]} 16. Nd4 {[%emt 0:06:22]} Bg7 {[%emt 0:02:50]} 17. Rad1 {[%emt 0:02:38]} Qb6 {[%emt 0:16:21] [#]} (17... h5 $11) 18. Bb4 $1 $14 {[%emt 0:14:38][%cal Ob4d6]} a5 {[%emt 0:16:46] [#]} (18... Qxd4 $2 19. Bxg6 $1 {[%mdl 512]} Nxg6 20. Rxd4 $18) (18... Bf8 $11 {keeps the balance.}) (18... Qd8 19. Qe3) 19. bxa6 $1 $16 {[%emt 0:00:07]} bxa6 {[%emt 0:00:09]} 20. Qf4 {[%emt 0:01:08]} Nc6 {[%emt 0:03:07]} 21. Nxc6 {[%emt 0:02:23] &Bianco is much more active.} Rxc6 {[%emt 0:04:15]} 22. Rb1 $1 {[%emt 0:01:56]} ({Of course not} 22. Qh4 Qd8 23. Qxd8+ Kxd8 $11) 22... Qd8 {[%emt 0:02:29]} 23. Rec1 {[%emt 0:09:14]} ({White should try} 23. Bd6 $16 {Strongly threatening Rb8.} g5 24. Qg3) 23... Rxc1+ {[%emt 0:01:10]} 24. Rxc1 {[%emt 0:00:51]} (24. Qxc1 $5 {[%cal Rb4d6]} Bxe5 25. Qc5 $11) 24... Qg5 $36 {[%emt 0:03:02][%mdl 2048] Black is more active.} 25. Qxg5 {[%emt 0:00:11]} hxg5 {[%emt 0:00:01]} 26. Bd6 {[%emt 0:00:08]} Rh4 {[%emt 0:01:37]} (26... Bf8 $15) 27. Rb1 $11 {[%emt 0:08:56]} Bb5 {[%emt 0:01:28] [#]} 28. g3 $1 {[%emt 0:00:33]} Rd4 {[%emt 0:00:53]} ({Don't take} 28... Bxd3 29. Rb8+ Kd7 30. gxh4 (30. Rb7+ Kc6 $11) 30... gxh4 31. Rb4 $14) 29. Bxb5+ {[%emt 0:00:52]} axb5 {[%emt 0:00:00]} 30. Rxb5 {[%emt 0:00:09] Hoping for Kf1.} Re4 {[%emt 0:00:07] [#]} (30... Rd1+ $1 $11 {remains equal.} 31. Kg2 Re1) 31. f3 $1 $16 {[%emt 0:01:27] White is clearly better.} Re2 {[%emt 0:00:08] [#]} 32. Kf1 $1 {[%emt 0:01:59]} Ra2 {[%emt 0:05:44]} 33. Rb7 {Weighted Error Value: White=0.21 (precise) /Black=0.29 (precise)} (33. Rb8+ $18 Kd7 34. Rb7+ Ke8 35. Re7+ Kf8 36. Rxe6+ Kg8 37. Re8+ Kh7 38. Ra8) 1/2-1/2

[Event "LV Capablanca Memorial Premier 2022"]
[Site "La Habana"]
[Date "2022.04.23"]
[Round "5.3"]
[White "Lujan, Carolina"]
[Black "Hernandez Gil, Ineymig"]
[Result "1-0"]
[ECO "B13"]
[WhiteElo "2334"]
[BlackElo "2348"]
[Annotator "TA"]
[PlyCount "95"]
[EventDate "2022.04.20"]
[EventType "tourn"]
[EventCountry "CUB"]
[SourceTitle "playchess.com"]
[Source "ChessBase"]
[SourceQuality "1"]
[TimeControl "40/5400+30:1800+30"]

{[%evp 19,95,32,47,47,51,52,64,61,57,56,58,58,60,50,50,47,54,46,49,37,42,42,47,47,39,32,61,51,54,0,94,48,71,72,73,72,74,66,70,62,71,0,84,70,62,57,59,64,58,12,22,14,20,0,7,0,0,-550,28,22,309,294,342,197,179,166,570,552,552,532,613,613,1011,958,1152,1128,29971,29972]} 1. e4 {[%emt 0:00:06]} c6 {[%emt 0:01:02]} 2. d4 {[%emt 0:00:09]} d5 {[%emt 0:00:08]} 3. exd5 {[%emt 0:00:06]} cxd5 {[%emt 0:00:06]} 4. Bd3 {[%emt 0:00:11]} Nc6 {[%emt 0:00:22]} 5. c3 {[%emt 0:00:06]} Nf6 {[%emt 0:00:19]} 6. Bf4 {[%emt 0:00:17]} Bg4 {[%emt 0:10:01]} 7. Qb3 {[%emt 0:01:28]} Qd7 {[%emt 0:02:13]} 8. Nd2 {[%emt 0:01:56]} e6 {[%emt 0:06:13]} 9. Ngf3 {[%emt 0:01:47]} Bxf3 {[%emt 0:03:39]} 10. Nxf3 {[%emt 0:00:14]} Be7 {[%emt 0:01:29]} 11. O-O {[%emt 0:11:39] B13: Caro-Kann: Exchange Variation and Panov-Botvinnik Attack.} O-O {[%emt 0:01:11]} 12. Qc2 {[%emt 0:02:53] [#]} Rfc8 $146 {[%emt 0:06:27][%cal Oc6b4]} ({Predecessor:} 12... g6 13. Bb5 Bd6 14. Qd2 Ne4 15. Qe3 Bxf4 16. Qxf4 Qd6 17. Qxd6 Nxd6 18. Bd3 Rfc8 {0-1 (50) Dubrovic,R (1576)-Vujnovic,P (1928) Topusko 2011}) 13. Qe2 {[%emt 0:11:07] White is slightly better.} a6 {[%emt 0:13:04]} 14. Rfe1 {[%emt 0:05:19]} Na5 {[%emt 0:13:35]} 15. Ne5 {[%emt 0:09:58]} Qe8 {[%emt 0:00:53]} 16. a4 {[%emt 0:06:18]} Nd7 {[%emt 0:07:53]} 17. Nf3 {[%emt 0:04:14]} Nc4 {[%emt 0:05:34]} 18. b3 {[%emt 0:01:38]} Na5 {[%emt 0:05:11][%csl LRb3,LRc3]} 19. Rab1 {[%emt 0:01:12]} Nf6 {[%emt 0:02:24]} 20. Bd2 {[%emt 0:01:59]} Nc6 {[%emt 0:03:01]} 21. g3 {[%emt 0:05:20]} Bd6 {[%emt 0:02:39]} 22. Kg2 {[%emt 0:08:09]} Ne7 {[%emt 0:08:27]} 23. Ng5 {[%emt 0:10:11][%cal Og5e6]} Nf5 {[%emt 0:00:30]} 24. Nf3 (24. Ra1 $14) 24... Bc7 (24... Ne7 $1 $11) 25. Ne5 {[%emt 0:00:00]} (25. c4 $16) 25... Nd6 {[%emt 0:01:00]} 26. f3 {[%emt 0:23:41] Inhibits Nde4.} b5 {[%emt 0:02:24]} 27. Ra1 {[%emt 0:00:44]} Ba5 {[%emt 0:01:27]} 28. Rec1 {[%emt 0:00:42]} Bb6 {[%emt 0:01:59]} 29. Be3 {[%emt 0:02:32]} Ba5 {[%emt 0:00:48]} 30. Bd2 {[%emt 0:02:26]} Bb6 $1 {[%emt 0:00:08]} 31. Bg5 {[%emt 0:00:58]} Nd7 {[%emt 0:01:19]} 32. axb5 {[%emt 0:00:00] &Bianco is much more active.} Nxe5 {[%emt 0:00:44]} 33. dxe5 {[%emt 0:00:20]} Nxb5 {[%emt 0:00:08]} 34. c4 {[%emt 0:00:00]} (34. Bd2 $14 Qd8 35. f4) 34... Nd4 $11 {[%emt 0:00:29][%csl LRb3,LRe2]} 35. Qd1 $36 {[%emt 0:01:14][%mdl 2048] Black is under pressure.} dxc4 {[%emt 0:00:21]} 36. bxc4 {[%emt 0:00:00]} Bc5 {[%emt 0:00:26]} 37. Be3 {[%emt 0:00:00]} Rd8 {[%emt 0:00:24]} 38. Qg1 $2 {[%emt 0:02:10][%mdl 8192] [#]} (38. Ra2 $11 {and White stays safe.}) 38... Ra7 $2 {[%emt 0:00:59]} (38... Nxf3 $1 $19 {[%mdl 512]} 39. Qf1 (39. Bxh7+ $2 Kxh7 40. Qf1 Bxe3 $19) 39... Bxe3 40. Kxf3 Bxc1 41. Rxc1 Rab8) 39. Rd1 {[%emt 0:00:00]} Qd7 $2 {[%emt 0:00:58][%mdl 8192] This move loses the game for Black.} (39... Rad7 $11 {and Black is okay.}) 40. Be4 $18 {[%emt 0:00:16] This bishop pair is nice.} a5 {[%emt 0:05:48]} 41. Rxd4 {[%emt 0:03:57]} Bxd4 {[%emt 0:00:19]} 42. Rd1 {[%emt 0:12:12][%cal Rd1d4]} Bxe3 {[%emt 0:00:23]} (42... Qa4 {is more resistant.} 43. Rxd4 Rxd4) 43. Rxd7 {[%emt 0:01:14]} Raxd7 {[%emt 0:09:48]} 44. Qxe3 {[%emt 0:00:45]} Rd2+ {[%emt 0:01:05]} 45. Kh3 {[%emt 0:02:30]} h5 {[%emt 0:03:11]} 46. c5 {[%emt 0:04:12][%cal Bc4c5,Bc5c6][%mdl 32]} Rb2 {[%emt 0:01:11]} 47. c6 {[%emt 0:00:54] c7 is the strong threat.} Rdd2 {[%emt 0:02:25] [#]} 48. Qxd2 $3 {[%emt 0:00:00][%mdl 512] Weighted Error Value: White=0.36/Black=0.71} 1-0

[Event "LV Capablanca Memorial Premier 2022"]
[Site "La Habana"]
[Date "2022.04.23"]
[Round "5.4"]
[White "Arribas Robaina, Maritza"]
[Black "Forgas Moreno, Yaniela"]
[Result "1/2-1/2"]
[ECO "B51"]
[WhiteElo "2204"]
[BlackElo "2303"]
[Annotator "TA"]
[PlyCount "124"]
[EventDate "2022.04.20"]
[EventType "tourn"]
[EventCountry "CUB"]
[SourceTitle "playchess.com"]
[Source "ChessBase"]
[SourceQuality "1"]
[TimeControl "40/5400+30:1800+30"]

{[%evp 9,124,20,19,13,18,22,54,0,0,8,34,0,13,18,17,8,70,15,49,-24,-31,-47,-39,-90,-98,-88,-27,-41,-23,-29,0,-47,-27,-70,-71,-50,-43,-63,-66,-78,-27,-29,-34,-35,-25,-44,-44,-58,-44,-45,-43,-64,-16,-14,-10,-22,-11,-11,-3,-36,-36,-37,-42,-39,-39,-64,0,0,0,-28,-22,-22,-31,-19,-31,-27,0,-85,-86,-91,-92,-125,-112,-97,-106,-113,0,0,0,0,87,87,87,87,100,100,100,100,97,12,11,1,1207,289,1490,59,59,59,59,59,59,59,59,59,59,59,59]} 1. e4 {[%emt 0:00:03]} c5 {[%emt 0:04:25]} 2. Nf3 {[%emt 0:00:05]} d6 {[%emt 0:00:15]} 3. Bb5+ {[%emt 0:00:06]} Nd7 {[%emt 0:00:13]} 4. O-O {[%emt 0:00:15]} a6 {[%emt 0:00:23]} 5. Bd3 {[%emt 0:00:06]} Ngf6 {[%emt 0:00:49]} 6. c3 {[%emt 0:00:39] B51: Sicilian: Moscow Variation (3 Bb5+) without 3...Bd7.} b5 {[%emt 0:00:16]} 7. Bc2 {[%emt 0:00:51]} c4 {[%emt 0:00:41]} 8. d4 {[%emt 0:05:41]} ({White should play} 8. a4 $14) 8... cxd3 $1 $11 {[%emt 0:00:35]} 9. Qxd3 {[%emt 0:00:07]} Bb7 {[%emt 0:00:39]} 10. Re1 {[%emt 0:00:22]} Nc5 {[%emt 0:02:49]} 11. Qe2 {[%emt 0:00:55]} e5 {[%emt 0:03:48]} 12. a4 {[%emt 0:02:39] [#]} Bc6 $146 {[%emt 0:08:19]} (12... bxa4 $11 13. Be3 Nfd7) ({Predecessor:} 12... bxa4 13. Be3 Nfd7 14. Bxc5 Nxc5 15. Rxa4 Be7 16. Ra1 O-O 17. Nbd2 Qc7 18. Nf1 Ne6 {1-0 (68) Donchenko,A (2660)-Sanchez Alvares,K (2250) Chess.com INT 2021}) 13. Bg5 {[%emt 0:04:42]} (13. b4 $14 Nxa4 14. Ng5) 13... bxa4 {[%emt 0:06:44]} 14. Nbd2 {[%emt 0:11:44]} (14. Rd1 $1 $14 Qb8 15. Ra2 (15. Bxf6 Qxb2 16. Bxe5 Qxa1 $11)) 14... Be7 {[%emt 0:06:19]} 15. Bxf6 {[%emt 0:06:10]} Bxf6 {[%emt 0:00:33]} 16. b4 {[%emt 0:04:02]} (16. Red1 $1 $15) 16... axb3 $1 $17 {[%emt 0:07:36]} 17. Nxb3 {[%emt 0:00:07]} Bb5 {[%emt 0:01:42] This bishop pair is nice.} (17... Nxb3 $17 18. Bxb3 O-O) 18. c4 $11 {[%emt 0:04:02]} Nxb3 {[%emt 0:02:07]} 19. Bxb3 {[%emt 0:00:10]} Bd7 {[%emt 0:01:43]} 20. Qd3 {[%emt 0:06:27]} (20. c5 $11 {feels stronger.}) 20... Qc7 {[%emt 0:09:53]} 21. Ba4 {[%emt 0:00:58]} Bxa4 {[%emt 0:00:55]} 22. Rxa4 {[%emt 0:00:07]} O-O {[%emt 0:00:29]} 23. Rea1 {[%emt 0:00:21]} a5 {[%emt 0:02:23]} 24. Nd2 {[%emt 0:07:51][%cal Bf3d2,Bd2b1,Bb1c3,Bc3d5][%mdl 32]} Ra7 {[%emt 0:04:37]} (24... Rfb8 $17) 25. Nb1 {[%emt 0:05:49]} Qc5 {[%emt 0:02:57]} 26. Nc3 {[%emt 0:02:53]} Bd8 {[%emt 0:00:48]} 27. Nd5 {[%emt 0:03:02]} Rb7 {[%emt 0:06:25]} 28. R4a2 {[%emt 0:05:38] Against Rb2} g6 {[%emt 0:02:54]} 29. g3 {[%emt 0:02:10]} f5 {[%emt 0:03:09]} 30. Kg2 {[%emt 0:04:05]} Rbf7 {[%emt 0:05:23]} (30... fxe4 $15 {deserves consideration.} 31. Qxe4 Rbf7) 31. exf5 {[%emt 0:01:10]} gxf5 {[%emt 0:04:41]} 32. Rb1 {[%emt 0:04:16]} Qc8 {[%emt 0:00:00]} 33. f4 {[%emt 0:05:13]} Qc6 {[%emt 0:01:53]} 34. Qb3 {[%emt 0:07:15]} exf4 {[%emt 0:04:03]} 35. gxf4 {[%emt 0:00:15]} Rg7+ {[%emt 0:00:07]} 36. Kh1 {[%emt 0:00:53]} Qe8 {[%emt 0:02:22] ( -> ...Qe4+)} 37. Qf3 {[%emt 0:01:37]} Qd7 {[%emt 0:02:51]} ({Better is} 37... Kh8 $1 $15) 38. Rg2 {[%emt 0:01:22]} Rg6 {[%emt 0:01:52]} 39. Rbg1 {[%emt 0:01:42]} Qe6 $40 {[%emt 0:00:25][%mdl 128] Black mounts an attack.} 40. Re2 {[%emt 0:00:00]} Qf7 {[%emt 0:00:00]} 41. Rge1 {[%emt 0:06:42]} Bh4 {[%emt 0:03:01]} 42. Rb1 {[%emt 0:02:08][%cal Ob1b7]} Re8 {[%emt 0:04:52]} 43. Rg2 {[%emt 0:12:20]} (43. Rxe8+ $11 Qxe8 44. Ne3) 43... Qe6 $17 {[%emt 0:04:29]} 44. Rbg1 {[%emt 0:03:28]} Bd8 $1 {[%emt 0:03:49]} 45. h4 {[%emt 0:04:47]} Kf7 {[%emt 0:05:07]} (45... Bxh4 $2 46. Qh5 Rxg2 47. Rxg2+ Kh8 48. Qxh4 Qe1+ 49. Qxe1 Rxe1+ 50. Kh2 $18) 46. Kh2 {[%emt 0:06:10]} Rxg2+ {[%emt 0:00:38]} 47. Rxg2 {[%emt 0:00:40] [#] Qh5+ is the strong threat.} (47. Qxg2 $2 Qh6 48. Qh3 Re2+ 49. Kh1 Qxh4 $19) 47... Qh6 {[%emt 0:00:16] Prevents Qh5+.} ({Black should try} 47... Rg8 $1 $17 {[%cal Rg8g2] White must now prevent ...Rxg2+.} 48. Qh5+ Kf8) 48. h5 $11 {[%emt 0:06:22]} Re4 {[%emt 0:00:50]} 49. Qh3 {[%emt 0:04:51]} Rxf4 {[%emt 0:00:20]} (49... Qe6 $11) 50. Nxf4 $16 {[%emt 0:00:00] The board is on fire.} (50. Kg1 $2 Rg4 51. Rxg4 fxg4 52. Qf1+ Kg8 $19) 50... Qxf4+ {[%emt 0:11:49]} 51. Qg3 Qxg3+ {[%emt 0:01:34]} 52. Kxg3 {[%emt 0:00:13][%mdl 4096] Endgame KR-KB} Kf6 {[%emt 0:00:00]} 53. Kf3 {[%emt 0:00:00]} Bb6 {[%emt 0:00:10]} 54. h6 {[%emt 0:00:00]} (54. Rd2 $16 Bc5 55. Kf4) 54... Bd4 $11 {[%emt 0:00:41]} 55. Rg7 {[%emt 0:00:00]} Be5 $2 {[%emt 0:00:40][%mdl 8192]} (55... a4 $11 56. c5 (56. Rxh7 $2 a3 $19) 56... Bxc5 57. Rxh7 Kg6) 56. Rxh7 $18 {[%emt 0:00:00]} Kg6 {[%emt 0:00:26] [#] Inhibits Rg7+.} (56... a4 57. Rd7 Kg6) 57. Ra7 $2 {[%emt 0:00:00]} ({White must play} 57. Re7 $1 $18 {[%cal Oc4c5] Intending c5! and mate.} Bc3 58. Re6+ Kh7 59. Rxd6) 57... Kxh6 $14 {[%emt 0:00:08] White is slightly better.} 58. Rxa5 {[%emt 0:00:00]} Kg5 {[%emt 0:00:18]} 59. Rd5 {[%emt 0:00:00] Threatening mate with c5.} Kf6 {[%emt 0:00:48]} 60. Rb5 {[%emt 0:00:00]} Ke6 {[%emt 0:00:44]} 61. Rb7 {[%emt 0:00:00]} Kf6 {[%emt 0:00:27]} 62. Ke3 {[%emt 0:00:00]} Ke6 {[%emt 0:00:25] Weighted Error Value: White=0.26 (precise) /Black=0.15 (very precise)} 1/2-1/2

[Event "LV Capablanca Memorial Premier 2022"]
[Site "La Habana"]
[Date "2022.04.23"]
[Round "5.5"]
[White "Ordaz Valdes, Lisandra Teresa"]
[Black "Kiolbasa, Oliwia"]
[Result "0-1"]
[ECO "D36"]
[WhiteElo "2371"]
[BlackElo "2388"]
[Annotator "TA"]
[PlyCount "114"]
[EventDate "2022.04.20"]
[EventType "tourn"]
[EventCountry "CUB"]
[SourceTitle "playchess.com"]
[Source "ChessBase"]
[SourceQuality "1"]
[TimeControl "40/5400+30:1800+30"]

{[%evp 18,114,20,6,13,-2,0,-6,-11,-13,-10,-18,-11,-9,-10,-21,-18,-18,0,0,0,-25,0,0,0,0,0,0,0,0,0,0,0,0,0,0,14,-6,-6,-45,0,-13,-9,-22,0,-31,0,0,0,0,0,0,0,0,8,0,0,0,0,-69,0,0,0,0,0,0,0,-497,-493,-541,-521,-514,-493,-568,-566,-511,-485,-883,-643,-629,-606,-622,-620,-845,-686,-1117,-1081,-1127,-1074,-1558,-1492,-1868,-1928,-1933,-1909,-29985,-29986,-29986,-29987]} 1. d4 {[%emt 0:00:03]} d5 {[%emt 0:01:02]} 2. c4 {[%emt 0:00:07]} e6 {[%emt 0:00:18]} 3. Nc3 {[%emt 0:00:37]} Nf6 {[%emt 0:00:18]} 4. cxd5 {[%emt 0:00:53]} exd5 {[%emt 0:00:10]} 5. Bg5 {[%emt 0:00:08]} c6 {[%emt 0:00:32]} 6. e3 {[%emt 0:00:13]} h6 {[%emt 0:00:27]} 7. Bh4 {[%emt 0:00:51]} Be7 {[%emt 0:00:27]} 8. Bd3 {[%emt 0:00:09]} O-O {[%emt 0:00:16]} 9. Qc2 {[%emt 0:00:38]} Re8 {[%emt 0:00:33]} 10. Nf3 {[%emt 0:03:48]} Ne4 $1 {[%emt 0:01:50][%mdl 4] is recently more successful than 10...Nbd7. D36: Queen's Gambit Declined: Exchange Variation: Main line (5 Bg5 c6 6 Qc2).} 11. Bxe4 {[%emt 0:03:05] [#] Bh7+ is the strong threat.} Bxh4 {[%emt 0:02:21]} 12. Bh7+ {[%emt 0:12:04]} Kh8 {[%emt 0:12:18] Hoping for ...Rxe3+. The position is equal.} 13. g3 {[%emt 0:09:37]} (13. Nxh4 Qxh4 14. Bd3 Qxd4 $17) 13... Bf6 {[%emt 0:00:25] Threatens to win with ...Bg4.} 14. Bf5 {[%emt 0:00:12] [#] Prevents Bg4.} Nd7 $146 {[%emt 0:08:47]} ({Predecessor:} 14... Bxf5 15. Qxf5 g6 16. Qf4 Kg7 17. h4 Na6 18. O-O-O b5 19. g4 Qc7 20. g5 Qxf4 21. exf4 hxg5 22. hxg5 {½-½ (54) Wells,P (2513)-Scekic,V (2084) Budva 2009}) 15. O-O {[%emt 0:00:51]} g6 {[%emt 0:00:45]} 16. Bh3 {[%emt 0:10:40]} Nb6 {[%emt 0:04:51]} 17. Bxc8 {[%emt 0:04:59]} Nxc8 {[%emt 0:00:10]} 18. b4 {[%emt 0:01:12]} Nd6 {[%emt 0:02:35]} 19. Qb3 {[%emt 0:02:39]} b5 {[%emt 0:02:46]} 20. a4 {[%emt 0:01:47]} a6 {[%emt 0:01:47]} 21. Rfe1 {[%emt 0:00:12]} Qd7 {[%emt 0:03:20]} 22. Ra2 {[%emt 0:06:57]} Qf5 {[%emt 0:12:04]} 23. Kg2 {[%emt 0:00:41]} Kg7 {[%emt 0:05:39]} 24. Rea1 Rac8 {[%emt 0:15:11]} 25. Qb1 Qd7 {[%emt 0:00:55]} 26. h3 h5 {[%emt 0:01:06]} 27. h4 Nc4 {[%emt 0:05:25]} 28. Re2 Re7 {[%emt 0:00:36]} (28... Rb8 $5 {[%cal Rb5a4]}) 29. a5 Rce8 {[%emt 0:03:14]} 30. Qd3 Nd6 {[%emt 0:02:19]} 31. Qc2 Nf5 {[%emt 0:04:47] And now ...Qd6 would win.} 32. Rae1 Qd6 {[%emt 0:04:49][%cal Oe7e3] [#] aiming for ...Rxe3!} 33. Qb1 Qd7 {[%emt 0:08:45]} 34. Qc2 {[%emt 0:00:28]} Kh8 {[%emt 0:00:00]} 35. Qc1 {[%emt 0:41:12]} Kg8 {[%emt 0:00:00]} 36. Qc2 {[%emt 0:02:07]} Bg7 {[%emt 0:00:00]} 37. Qd3 {[%emt 0:02:50]} Re4 {[%emt 0:00:00]} 38. Rh1 {[%emt 0:00:00]} (38. Nxe4 $2 dxe4 39. Ne5 Bxe5 $19) (38. Qd1 $11) 38... Qd6 {[%emt 0:00:00] &Nero is more active.} (38... Qc7 $1 $15 39. Rh3 (39. Nxe4 $2 dxe4 40. Qd2 exf3+ 41. Kxf3 Qe7 $19) 39... R4e7) 39. Ne5 $1 $11 {[%emt 0:00:24]} (39. Nxe4 $2 dxe4 40. Qd1 exf3+ 41. Kxf3 Qd5+ 42. e4 Nxd4+ 43. Kg2 Qc4 $19) 39... R4xe5 {[%emt 0:00:00]} (39... Bxe5 40. Nxe4 Qxb4 41. dxe5 $16) 40. dxe5 {[%emt 0:00:00]} Qxb4 {[%emt 0:00:00]} 41. f4 {[%emt 0:10:53]} Qxa5 {[%emt 0:04:47]} 42. Nxd5 $2 {[%emt 0:11:17][%mdl 8192] White is now going downhill.} cxd5 $19 {[%emt 0:01:52]} 43. Qxd5 {[%emt 0:00:07]} Rd8 {[%emt 0:14:17]} 44. Ra1 {[%emt 0:05:11]} Qc7 {[%emt 0:00:00]} (44... Rxd5 $2 {perishes.} 45. Rxa5 Rd3 46. Kf2 $19) 45. Rc1 {[%emt 0:01:42]} Qxc1 {[%emt 0:00:52]} ({Stronger than} 45... Rxd5 46. Rxc7 Rd3 47. Rc8+ Kh7 48. Kf2 $17) 46. Qxd8+ {[%emt 0:00:05]} Bf8 {[%emt 0:00:08]} 47. e6 {[%emt 0:02:20]} (47. Qd2 $142 Qc4 48. e4) 47... Qc6+ {[%emt 0:01:56]} 48. e4 {[%emt 0:01:29]} Qxe6 {[%emt 0:00:46]} 49. Qd3 {[%emt 0:00:17]} Nd6 {[%emt 0:01:30]} 50. Kf3 {[%emt 0:00:16]} a5 {[%emt 0:01:36][%cal Ba6a5,Ba5a4][%mdl 32] White must now prevent ...Qh3.} 51. Rc2 {[%emt 0:01:36]} Nc4 {[%emt 0:00:59]} ({Inferior is} 51... Nxe4 52. Qxe4 Qg4+ 53. Kf2 $17) 52. Kg2 {[%emt 0:00:54]} a4 {[%emt 0:00:58]} 53. Kh2 {[%emt 0:00:06]} Qd6 {[%emt 0:01:40]} 54. Qe2 {[%emt 0:00:54]} Qd4 {[%emt 0:01:05]} 55. e5 {[%emt 0:00:53]} Bc5 {[%emt 0:00:43]} 56. Qg2 {[%emt 0:00:25] Against Qg1+} Ne3 {[%emt 0:01:00][%csl LRc2,LRg2]} 57. Qa8+ {[%emt 0:00:37]} Kg7 {[%emt 0:00:35] Weighted Error Value: White=0.64/Black=0.15 (very precise)} 0-1